[Event "Late-Titled-Tuesday-Blitz-November-28-2023"]
[Site "Chess.com"]
[Date "2023.11.28"]
[Round "5"]
[White "1800_strength"]
[Black "Jaka_Brilej"]
[Result "1-0"]
[WhiteElo "2792"]
[BlackElo "2463"]
[TimeControl "180+1"]
[EndTime "14:53:08 PST"]
[Termination "1800_strength won by resignation"]

1. g4 {[%clk 0:03:00.9]} 1... d5 {[%clk 0:02:57.2]} 2. Bg2 {[%clk 0:03:00.9]}
2... c6 {[%clk 0:02:57.8]} 3. g5 {[%clk 0:03:00.7]} 3... e5 {[%clk 0:02:56.9]}
4. d4 {[%clk 0:03:01.3]} 4... e4 {[%clk 0:02:34.1]} 5. f3 {[%clk 0:03:01.1]}
5... f5 {[%clk 0:02:34.6]} 6. Nh3 {[%clk 0:02:47.8]} 6... Bd6 {[%clk 0:02:30.1]}
7. c4 {[%clk 0:02:43.9]} 7... Ne7 {[%clk 0:02:30.1]} 8. Bf4 {[%clk 0:02:34]}
8... Ng6 {[%clk 0:02:23]} 9. Bxd6 {[%clk 0:02:32.7]} 9... Qxd6 {[%clk
0:02:23.3]} 10. Nc3 {[%clk 0:02:33.3]} 10... Be6 {[%clk 0:02:02.7]} 11. Qb3
{[%clk 0:02:30.1]} 11... Nd7 {[%clk 0:01:56.9]} 12. c5 {[%clk 0:02:23.8]} 12...
Qc7 {[%clk 0:01:56.7]} 13. fxe4 {[%clk 0:02:09.3]} 13... fxe4 {[%clk 0:01:56.6]}
14. Nxe4 {[%clk 0:02:10]} 14... O-O {[%clk 0:01:47.1]} 15. Nd6 {[%clk
0:02:00.9]} 15... b6 {[%clk 0:01:33.9]} 16. Qc3 {[%clk 0:01:53.2]} 16... Nh4
{[%clk 0:01:30.1]} 17. Bf1 {[%clk 0:01:43.8]} 17... Nf5 {[%clk 0:00:54.4]} 18.
Nxf5 {[%clk 0:01:40.7]} 18... Bxf5 {[%clk 0:00:55.3]} 19. Bg2 {[%clk 0:01:31]}
19... bxc5 {[%clk 0:00:51]} 20. dxc5 {[%clk 0:01:31.1]} 20... Rae8 {[%clk
0:00:49.5]} 21. O-O {[%clk 0:01:21.1]} 21... Rxe2 {[%clk 0:00:45.6]} 22. Rae1
{[%clk 0:01:21.7]} 22... Bg4 {[%clk 0:00:16.4]} 23. Rxe2 {[%clk 0:01:07.8]}
23... Bxe2 {[%clk 0:00:16.4]} 24. Rxf8+ {[%clk 0:00:56.9]} 24... Nxf8 {[%clk
0:00:17.3]} 25. b4 {[%clk 0:00:56]} 25... Qe7 {[%clk 0:00:15.6]} 26. Nf4 {[%clk
0:00:54.1]} 26... Bg4 {[%clk 0:00:11.5]} 27. h4 {[%clk 0:00:53]} 27... Ne6
{[%clk 0:00:11.3]} 28. Qe5 {[%clk 0:00:52.2]} 28... Qf7 {[%clk 0:00:09.1]} 29.
Nd3 {[%clk 0:00:41.2]} 29... Qf5 {[%clk 0:00:09.3]} 30. Qxf5 {[%clk 0:00:41.6]}
30... Bxf5 {[%clk 0:00:09.2]} 31. Ne5 {[%clk 0:00:42.5]} 31... Nd8 {[%clk
0:00:08.9]} 32. Nxc6 {[%clk 0:00:42.6]} 32... Nxc6 {[%clk 0:00:08.9]} 33. Bxd5+
{[%clk 0:00:43.3]} 33... Kf8 {[%clk 0:00:09.8]} 34. Bxc6 {[%clk 0:00:43.9]}
34... Ke7 {[%clk 0:00:10.4]} 35. Bd5 {[%clk 0:00:42.3]} 35... Bd3 {[%clk
0:00:10.7]} 36. a3 {[%clk 0:00:42.1]} 36... h6 {[%clk 0:00:11.6]} 37. Kf2 {[%clk
0:00:42.1]} 37... Bg6 {[%clk 0:00:11.1]} 38. Ke3 {[%clk 0:00:42.5]} 38... Be8
{[%clk 0:00:12]} 39. Kd4 {[%clk 0:00:43]} 39... hxg5 {[%clk 0:00:12.3]} 40. hxg5
{[%clk 0:00:43.3]} 40... Bb5 {[%clk 0:00:12.5]} 41. Ke5 {[%clk 0:00:42]} 1-0

[Event "Late-Titled-Tuesday-Blitz-November-28-2023"]
[Site "Chess.com"]
[Date "2023.11.28"]
[Round "5"]
[White "Freeeeeeeeeeeeeeeeee"]
[Black "temiksmozg"]
[Result "0-1"]
[WhiteElo "2116"]
[BlackElo "2605"]
[TimeControl "180+1"]
[EndTime "14:53:09 PST"]
[Termination "temiksmozg won by resignation"]

1. d4 {[%clk 0:03:00.9]} 1... Nf6 {[%clk 0:02:59.7]} 2. Nf3 {[%clk 0:03:00.4]}
2... e6 {[%clk 0:03:00]} 3. g3 {[%clk 0:02:59.8]} 3... d5 {[%clk 0:03:00.2]} 4.
Bg2 {[%clk 0:02:59.8]} 4... Bb4+ {[%clk 0:03:00.5]} 5. c3 {[%clk 0:02:59.8]}
5... Be7 {[%clk 0:02:58.8]} 6. O-O {[%clk 0:02:59.9]} 6... O-O {[%clk
0:02:58.5]} 7. Bf4 {[%clk 0:02:58.6]} 7... c5 {[%clk 0:02:58.3]} 8. Nbd2 {[%clk
0:02:57.1]} 8... Nc6 {[%clk 0:02:58.2]} 9. a3 {[%clk 0:02:52.1]} 9... Ne4 {[%clk
0:02:52.4]} 10. Rc1 {[%clk 0:02:35.2]} 10... cxd4 {[%clk 0:02:51.3]} 11. Nxd4
{[%clk 0:02:31]} 11... Nxd2 {[%clk 0:02:43.8]} 12. Qxd2 {[%clk 0:02:29]} 12...
Bd7 {[%clk 0:02:43.2]} 13. e4 {[%clk 0:02:20.5]} 13... e5 {[%clk 0:02:08.8]} 14.
Nxc6 {[%clk 0:02:16.4]} 14... Bxc6 {[%clk 0:02:08.3]} 15. Bxe5 {[%clk
0:02:09.1]} 15... dxe4 {[%clk 0:02:08]} 16. Qf4 {[%clk 0:01:52]} 16... Bg5
{[%clk 0:01:59.5]} 17. Qg4 {[%clk 0:01:51.8]} 17... f5 {[%clk 0:01:53.8]} 18.
Qd1 {[%clk 0:01:35]} 18... Bxc1 {[%clk 0:01:51.1]} 19. Qxc1 {[%clk 0:01:35.9]}
19... Qe7 {[%clk 0:01:49.3]} 20. Bf4 {[%clk 0:01:32.4]} 20... h6 {[%clk
0:01:38]} 21. h4 {[%clk 0:01:28.8]} 21... Rad8 {[%clk 0:01:37.4]} 22. Be3 {[%clk
0:01:18.6]} 22... b6 {[%clk 0:01:34.7]} 23. Bd4 {[%clk 0:01:18.5]} 23... f4
{[%clk 0:01:27.3]} 24. Re1 {[%clk 0:01:13.7]} 24... Qd6 {[%clk 0:01:14.4]} 25.
Kh2 {[%clk 0:00:46.5]} 25... e3 {[%clk 0:01:04.7]} 26. fxe3 {[%clk 0:00:30.3]}
26... fxg3+ {[%clk 0:00:55.6]} 27. Kg1 {[%clk 0:00:30.2]} 27... Bxg2 {[%clk
0:00:55]} 28. Kxg2 {[%clk 0:00:30.4]} 28... Rf2+ {[%clk 0:00:54.4]} 29. Kg1
{[%clk 0:00:31.3]} 29... Qe6 {[%clk 0:00:30.1]} 30. Rf1 {[%clk 0:00:18.8]} 30...
Rdf8 {[%clk 0:00:18.7]} 31. Rxf2 {[%clk 0:00:14.5]} 31... gxf2+ {[%clk 0:00:18]}
0-1

[Event "Late-Titled-Tuesday-Blitz-November-28-2023"]
[Site "Chess.com"]
[Date "2023.11.28"]
[Round "5"]
[White "larsmandreassen"]
[Black "gmpeter008"]
[Result "0-1"]
[WhiteElo "2255"]
[BlackElo "2511"]
[TimeControl "180+1"]
[EndTime "14:53:18 PST"]
[Termination "gmpeter008 won on time"]

1. d4 {[%clk 0:02:55.7]} 1... d5 {[%clk 0:02:59.7]} 2. Nf3 {[%clk 0:02:55.9]}
2... e6 {[%clk 0:02:58.1]} 3. c4 {[%clk 0:02:56.6]} 3... a6 {[%clk 0:02:58]} 4.
Nc3 {[%clk 0:02:57.5]} 4... Nf6 {[%clk 0:02:57.4]} 5. cxd5 {[%clk 0:02:56.1]}
5... exd5 {[%clk 0:02:56.8]} 6. Bg5 {[%clk 0:02:56.5]} 6... c6 {[%clk
0:02:50.8]} 7. e3 {[%clk 0:02:55.5]} 7... Be7 {[%clk 0:02:49.3]} 8. Bd3 {[%clk
0:02:55]} 8... Be6 {[%clk 0:02:46.8]} 9. O-O {[%clk 0:02:54.3]} 9... Nbd7 {[%clk
0:02:46.7]} 10. Ne5 {[%clk 0:02:52.8]} 10... Nxe5 {[%clk 0:02:42.9]} 11. dxe5
{[%clk 0:02:51.3]} 11... Ng4 {[%clk 0:02:41.4]} 12. Bf4 {[%clk 0:02:29.9]} 12...
g5 {[%clk 0:02:39.3]} 13. Bg3 {[%clk 0:02:25.4]} 13... h5 {[%clk 0:02:38.9]} 14.
h3 {[%clk 0:02:24.4]} 14... h4 {[%clk 0:02:39.3]} 15. hxg4 {[%clk 0:02:22.7]}
15... hxg3 {[%clk 0:02:39.3]} 16. fxg3 {[%clk 0:02:22]} 16... Qc7 {[%clk
0:02:24.3]} 17. Qf3 {[%clk 0:02:09.3]} 17... Qxe5 {[%clk 0:02:22.5]} 18. Rae1
{[%clk 0:01:34.6]} 18... O-O-O {[%clk 0:02:20.4]} 19. Bf5 {[%clk 0:01:29.8]}
19... Bc5 {[%clk 0:02:16.5]} 20. Na4 {[%clk 0:01:23.2]} 20... Ba7 {[%clk
0:02:12.1]} 21. b4 {[%clk 0:01:22.5]} 21... Rh6 {[%clk 0:01:44.4]} 22. Nc5
{[%clk 0:01:18.4]} 22... Bxc5 {[%clk 0:01:40.2]} 23. bxc5 {[%clk 0:01:17.6]}
23... Rdh8 {[%clk 0:01:40.3]} 24. Kf2 {[%clk 0:01:06.8]} 24... Rf6 {[%clk
0:01:27.4]} 25. Kg1 {[%clk 0:00:53.9]} 25... Bxf5 {[%clk 0:01:11.8]} 26. gxf5
{[%clk 0:00:52.6]} 26... Qb2 {[%clk 0:00:38]} 27. Re2 {[%clk 0:00:47.5]} 27...
Qb4 {[%clk 0:00:38.2]} 28. g4 {[%clk 0:00:32]} 28... Qxc5 {[%clk 0:00:36.5]} 29.
Qg3 {[%clk 0:00:32.4]} 29... Rfh6 {[%clk 0:00:26.2]} 30. Qe5 {[%clk 0:00:27.8]}
30... Qc4 {[%clk 0:00:26]} 31. e4 {[%clk 0:00:13.6]} 31... Qxe2 {[%clk
0:00:25.1]} 0-1

[Event "Late-Titled-Tuesday-Blitz-November-28-2023"]
[Site "Chess.com"]
[Date "2023.11.28"]
[Round "5"]
[White "AryanTari"]
[Black "Hikaru"]
[Result "0-1"]
[WhiteElo "2978"]
[BlackElo "3226"]
[TimeControl "180+1"]
[EndTime "14:53:21 PST"]
[Termination "Hikaru won by resignation"]

1. e4 {[%clk 0:02:53.2]} 1... e6 {[%clk 0:02:50]} 2. d4 {[%clk 0:02:51.9]} 2...
d5 {[%clk 0:02:50.9]} 3. Nc3 {[%clk 0:02:50.4]} 3... Nf6 {[%clk 0:02:50.6]} 4.
e5 {[%clk 0:02:50.5]} 4... Nfd7 {[%clk 0:02:51.3]} 5. f4 {[%clk 0:02:51.1]} 5...
c5 {[%clk 0:02:50.6]} 6. Nf3 {[%clk 0:02:51]} 6... Nc6 {[%clk 0:02:50.9]} 7. Be3
{[%clk 0:02:51.5]} 7... Rb8 {[%clk 0:02:51.2]} 8. Qd2 {[%clk 0:02:49.4]} 8...
Qa5 {[%clk 0:02:50.4]} 9. Be2 {[%clk 0:02:36.9]} 9... b5 {[%clk 0:02:50.5]} 10.
O-O {[%clk 0:02:36.1]} 10... b4 {[%clk 0:02:49.5]} 11. Nd1 {[%clk 0:02:35.9]}
11... Ba6 {[%clk 0:02:49.7]} 12. Bxa6 {[%clk 0:02:30.1]} 12... Qxa6 {[%clk
0:02:49.8]} 13. Nf2 {[%clk 0:02:09.3]} 13... c4 {[%clk 0:02:41]} 14. Qe2 {[%clk
0:02:00.7]} 14... Be7 {[%clk 0:02:36.2]} 15. f5 {[%clk 0:01:53.4]} 15... exf5
{[%clk 0:02:21.4]} 16. Bf4 {[%clk 0:01:53.5]} 16... Rb6 {[%clk 0:02:21.6]} 17.
e6 {[%clk 0:01:45.6]} 17... fxe6 {[%clk 0:02:22.5]} 18. Qxe6 {[%clk 0:01:45.8]}
18... Nxd4 {[%clk 0:02:22.7]} 19. Qe3 {[%clk 0:01:30.5]} 19... Ne6 {[%clk
0:01:53.4]} 20. Qd2 {[%clk 0:01:22.9]} 20... Nf6 {[%clk 0:01:50.9]} 21. Be5
{[%clk 0:01:15.7]} 21... Rb5 {[%clk 0:01:31.5]} 22. a4 {[%clk 0:00:36.6]} 22...
bxa3 {[%clk 0:01:24.1]} 23. bxa3 {[%clk 0:00:37.5]} 23... Ne4 {[%clk 0:01:14.6]}
24. Qe2 {[%clk 0:00:24.9]} 24... Bc5 {[%clk 0:01:09.1]} 25. Kh1 {[%clk
0:00:20.4]} 25... Bxf2 {[%clk 0:01:03.2]} 26. Rxf2 {[%clk 0:00:20.8]} 26...
Nxf2+ {[%clk 0:01:04.1]} 27. Qxf2 {[%clk 0:00:21.4]} 27... O-O {[%clk
0:01:03.9]} 28. Re1 {[%clk 0:00:20.7]} 28... Qb6 {[%clk 0:01:04]} 29. Qg3 {[%clk
0:00:20.1]} 29... Rb1 {[%clk 0:01:03.4]} 30. h4 {[%clk 0:00:20.3]} 30... Rxe1+
{[%clk 0:01:00.8]} 31. Qxe1 {[%clk 0:00:21.2]} 31... f4 {[%clk 0:00:59.5]} 32.
c3 {[%clk 0:00:15.6]} 32... Qc5 {[%clk 0:00:43.7]} 33. Qb1 {[%clk 0:00:14.7]}
33... Qe7 {[%clk 0:00:41.8]} 34. Qb5 {[%clk 0:00:11.4]} 34... Rd8 {[%clk
0:00:42.1]} 35. a4 {[%clk 0:00:08.8]} 35... g5 {[%clk 0:00:40.6]} 36. hxg5
{[%clk 0:00:03.6]} 36... Nxg5 {[%clk 0:00:41.5]} 37. Nxg5 {[%clk 0:00:02.8]}
37... Qxg5 {[%clk 0:00:40.2]} 38. Bd4 {[%clk 0:00:02.5]} 38... Qh5+ {[%clk
0:00:37.3]} 39. Kg1 {[%clk 0:00:02.7]} 39... Re8 {[%clk 0:00:38.1]} 40. Qd7
{[%clk 0:00:02.1]} 40... Re1+ {[%clk 0:00:37.6]} 0-1

[Event "Late-Titled-Tuesday-Blitz-November-28-2023"]
[Site "Chess.com"]
[Date "2023.11.28"]
[Round "5"]
[White "Gyulamiryan-koryun"]
[Black "stasOR4ik"]
[Result "0-1"]
[WhiteElo "1960"]
[BlackElo "2487"]
[TimeControl "180+1"]
[EndTime "14:53:27 PST"]
[Termination "stasOR4ik won on time"]

1. e4 {[%clk 0:02:59.1]} 1... c6 {[%clk 0:02:59]} 2. Nc3 {[%clk 0:02:57.9]} 2...
d5 {[%clk 0:02:59.1]} 3. Nf3 {[%clk 0:02:57.4]} 3... Bg4 {[%clk 0:02:54.3]} 4.
h3 {[%clk 0:02:56.9]} 4... Bxf3 {[%clk 0:02:46]} 5. Qxf3 {[%clk 0:02:55.9]} 5...
d4 {[%clk 0:02:46.3]} 6. Ne2 {[%clk 0:02:55.1]} 6... e5 {[%clk 0:02:43.9]} 7. d3
{[%clk 0:02:55.1]} 7... Nf6 {[%clk 0:02:36.9]} 8. g4 {[%clk 0:02:53.3]} 8...
Bb4+ {[%clk 0:02:28.9]} 9. Bd2 {[%clk 0:02:47.9]} 9... Bxd2+ {[%clk 0:02:20.9]}
10. Kxd2 {[%clk 0:02:48]} 10... Qa5+ {[%clk 0:02:16.7]} 11. c3 {[%clk
0:02:47.6]} 11... Na6 {[%clk 0:02:14]} 12. g5 {[%clk 0:02:31.5]} 12... Nd7
{[%clk 0:02:12]} 13. h4 {[%clk 0:02:30.7]} 13... O-O-O {[%clk 0:02:05.7]} 14.
Bh3 {[%clk 0:02:30.4]} 14... Kb8 {[%clk 0:02:04.3]} 15. Qxf7 {[%clk 0:02:23.7]}
15... Ndc5 {[%clk 0:01:47.5]} 16. Qxg7 {[%clk 0:02:08.6]} 16... dxc3+ {[%clk
0:01:40.5]} 17. bxc3 {[%clk 0:01:55.9]} 17... Nxe4+ {[%clk 0:01:30.5]} 18. Ke3
{[%clk 0:01:52.6]} 18... Nxc3 {[%clk 0:01:05.8]} 19. Nxc3 {[%clk 0:01:48.3]}
19... Qxc3 {[%clk 0:01:04.2]} 20. Rad1 {[%clk 0:01:41.8]} 20... Rhf8 {[%clk
0:00:58.9]} 21. f3 {[%clk 0:01:09.1]} 21... Nc5 {[%clk 0:00:57.3]} 22. Bf1
{[%clk 0:01:02.6]} 22... Qd4+ {[%clk 0:00:49.6]} 23. Ke2 {[%clk 0:00:58.8]}
23... Nxd3 {[%clk 0:00:48.2]} 24. Rh2 {[%clk 0:00:27]} 24... Nf4+ {[%clk
0:00:45.4]} 25. Ke1 {[%clk 0:00:20.1]} 25... Qxd1+ {[%clk 0:00:40.9]} 26. Kf2
{[%clk 0:00:19.9]} 26... Nd3+ {[%clk 0:00:28.8]} 27. Bxd3 {[%clk 0:00:15.9]}
27... Qxf3+ {[%clk 0:00:24.8]} 28. Ke1 {[%clk 0:00:11.1]} 28... Rxd3 {[%clk
0:00:21.6]} 29. Qxe5+ {[%clk 0:00:09.4]} 29... Ka8 {[%clk 0:00:21.8]} 30. Qe2
{[%clk 0:00:03]} 30... Re3 {[%clk 0:00:20.2]} 0-1

[Event "Late-Titled-Tuesday-Blitz-November-28-2023"]
[Site "Chess.com"]
[Date "2023.11.28"]
[Round "5"]
[White "thechessnoob12345"]
[Black "Hoshka"]
[Result "1-0"]
[WhiteElo "2294"]
[BlackElo "2128"]
[TimeControl "180+1"]
[EndTime "14:53:27 PST"]
[Termination "thechessnoob12345 won on time"]

1. f4 {[%clk 0:03:00.9]} 1... d5 {[%clk 0:02:58.5]} 2. b3 {[%clk 0:03:00.9]}
2... Nf6 {[%clk 0:02:57]} 3. Nf3 {[%clk 0:03:00.9]} 3... c5 {[%clk 0:02:55.8]}
4. Bb2 {[%clk 0:03:01.4]} 4... Nc6 {[%clk 0:02:55.5]} 5. e3 {[%clk 0:03:01.9]}
5... Bg4 {[%clk 0:02:49.7]} 6. Bb5 {[%clk 0:03:01.7]} 6... Rc8 {[%clk
0:02:49.2]} 7. h3 {[%clk 0:02:59.2]} 7... Bxf3 {[%clk 0:02:48.2]} 8. Qxf3 {[%clk
0:03:00.1]} 8... e6 {[%clk 0:02:48.1]} 9. O-O {[%clk 0:02:59.4]} 9... Be7 {[%clk
0:02:45.4]} 10. d3 {[%clk 0:02:58.2]} 10... O-O {[%clk 0:02:42.6]} 11. Nd2
{[%clk 0:02:57.7]} 11... Nb4 {[%clk 0:02:37.7]} 12. a3 {[%clk 0:02:43.6]} 12...
Nxc2 {[%clk 0:02:30.8]} 13. Rac1 {[%clk 0:02:43.9]} 13... Nxe3 {[%clk
0:02:19.8]} 14. Qxe3 {[%clk 0:02:41]} 14... a6 {[%clk 0:02:19.2]} 15. Bc4 {[%clk
0:02:39]} 15... b5 {[%clk 0:02:09.8]} 16. Nf3 {[%clk 0:02:37.3]} 16... bxc4
{[%clk 0:02:04.3]} 17. bxc4 {[%clk 0:02:35.7]} 17... d4 {[%clk 0:02:04.1]} 18.
Qd2 {[%clk 0:02:33.3]} 18... Rb8 {[%clk 0:02:00.4]} 19. Rb1 {[%clk 0:02:27.1]}
19... Qc7 {[%clk 0:01:57.4]} 20. Ne5 {[%clk 0:02:24.2]} 20... Bd6 {[%clk
0:01:54.6]} 21. Rfe1 {[%clk 0:02:20.6]} 21... Nd7 {[%clk 0:01:25.2]} 22. Nxd7
{[%clk 0:02:17]} 22... Qxd7 {[%clk 0:01:25.1]} 23. g3 {[%clk 0:02:13.1]} 23...
Qc7 {[%clk 0:01:24.6]} 24. Qe2 {[%clk 0:02:08.3]} 24... Rb3 {[%clk 0:01:20.1]}
25. Rbd1 {[%clk 0:01:42.6]} 25... Rfb8 {[%clk 0:01:18.8]} 26. Bc1 {[%clk
0:01:42.2]} 26... g6 {[%clk 0:01:13.5]} 27. Rf1 {[%clk 0:01:40.1]} 27... Rb1
{[%clk 0:00:54.7]} 28. h4 {[%clk 0:01:32]} 28... h5 {[%clk 0:00:51.8]} 29. g4
{[%clk 0:01:30.1]} 29... hxg4 {[%clk 0:00:50.7]} 30. Qxg4 {[%clk 0:01:31]} 30...
Kf8 {[%clk 0:00:29.3]} 31. h5 {[%clk 0:01:26.2]} 31... gxh5 {[%clk 0:00:27.6]}
32. Qxh5 {[%clk 0:01:26.1]} 32... f5 {[%clk 0:00:16.8]} 33. Kf2 {[%clk
0:01:10.2]} 33... Ke7 {[%clk 0:00:14.7]} 34. Rg1 {[%clk 0:01:07.8]} 34... Kd7
{[%clk 0:00:10.7]} 35. Rg7+ {[%clk 0:01:07.4]} 35... Be7 {[%clk 0:00:10.7]} 36.
Qf7 {[%clk 0:01:02.2]} 36... Re8 {[%clk 0:00:09.4]} 37. Re1 {[%clk 0:00:56.9]}
37... Qd6 {[%clk 0:00:09.2]} 38. Rg6 {[%clk 0:00:56.2]} 38... Rxc1 {[%clk
0:00:06.2]} 39. Rxc1 {[%clk 0:00:50.7]} 39... Qxf4+ {[%clk 0:00:05.7]} 40. Kg2
{[%clk 0:00:49.7]} 40... Qxc1 {[%clk 0:00:05]} 41. Qxe6+ {[%clk 0:00:47.2]} 1-0

[Event "Late-Titled-Tuesday-Blitz-November-28-2023"]
[Site "Chess.com"]
[Date "2023.11.28"]
[Round "5"]
[White "LiemLe"]
[Black "rasmussvane"]
[Result "1-0"]
[WhiteElo "3137"]
[BlackElo "2974"]
[TimeControl "180+1"]
[EndTime "14:53:29 PST"]
[Termination "LiemLe won by resignation"]

1. Nf3 {[%clk 0:03:00.9]} 1... d5 {[%clk 0:02:58.5]} 2. e3 {[%clk 0:03:00.9]}
2... Nf6 {[%clk 0:02:57.7]} 3. c4 {[%clk 0:03:01.2]} 3... e6 {[%clk 0:02:57.8]}
4. Nc3 {[%clk 0:03:01.6]} 4... dxc4 {[%clk 0:02:49.3]} 5. Bxc4 {[%clk
0:03:01.1]} 5... a6 {[%clk 0:02:49.6]} 6. a4 {[%clk 0:02:53.4]} 6... c5 {[%clk
0:02:47.9]} 7. b3 {[%clk 0:02:47.9]} 7... b6 {[%clk 0:02:43.8]} 8. Bb2 {[%clk
0:02:43.8]} 8... Bb7 {[%clk 0:02:41.2]} 9. O-O {[%clk 0:02:42.6]} 9... Be7
{[%clk 0:02:39.2]} 10. d4 {[%clk 0:02:40.6]} 10... O-O {[%clk 0:02:38.7]} 11.
Qe2 {[%clk 0:02:22.9]} 11... Nc6 {[%clk 0:02:21.4]} 12. Rad1 {[%clk 0:02:21.8]}
12... cxd4 {[%clk 0:02:19.3]} 13. Nxd4 {[%clk 0:02:21.3]} 13... Nxd4 {[%clk
0:02:19.6]} 14. Rxd4 {[%clk 0:02:22.2]} 14... Qc7 {[%clk 0:02:16.8]} 15. Rfd1
{[%clk 0:02:13.5]} 15... Rfd8 {[%clk 0:02:05.2]} 16. Rxd8+ {[%clk 0:02:12.3]}
16... Bxd8 {[%clk 0:02:05.3]} 17. Ba3 {[%clk 0:01:58.2]} 17... Be7 {[%clk
0:01:51.5]} 18. Bxe7 {[%clk 0:01:57.9]} 18... Qxe7 {[%clk 0:01:52.4]} 19. Qd2
{[%clk 0:01:58.2]} 19... Qb4 {[%clk 0:01:29.9]} 20. e4 {[%clk 0:01:37]} 20... e5
{[%clk 0:01:00.5]} 21. Qe3 {[%clk 0:01:08.2]} 21... h6 {[%clk 0:00:50.5]} 22. h3
{[%clk 0:01:07]} 22... Rc8 {[%clk 0:00:43.6]} 23. Kh2 {[%clk 0:00:53]} 23... Kf8
{[%clk 0:00:40.8]} 24. Rd3 {[%clk 0:00:38.8]} 24... Qc5 {[%clk 0:00:33.9]} 25.
Qd2 {[%clk 0:00:35.4]} 25... Qc7 {[%clk 0:00:26.6]} 26. f3 {[%clk 0:00:34]}
26... a5 {[%clk 0:00:20.6]} 27. Nb5 {[%clk 0:00:32.7]} 27... Qe7 {[%clk
0:00:20.3]} 28. Nd6 {[%clk 0:00:30.8]} 28... Rd8 {[%clk 0:00:12.5]} 29. Nxf7
{[%clk 0:00:28.8]} 29... Rxd3 {[%clk 0:00:12.7]} 30. Qxd3 {[%clk 0:00:29.7]}
30... Qc7 {[%clk 0:00:09.5]} 31. Nd8 {[%clk 0:00:18.2]} 31... Bc8 {[%clk
0:00:09.2]} 32. Nf7 {[%clk 0:00:17.5]} 32... Ke7 {[%clk 0:00:05.9]} 33. Nh8
{[%clk 0:00:17.1]} 33... Bd7 {[%clk 0:00:05.7]} 34. Ng6+ {[%clk 0:00:17.2]}
34... Ke8 {[%clk 0:00:06.3]} 35. Qc3 {[%clk 0:00:17.5]} 35... b5 {[%clk
0:00:03.8]} 36. axb5 {[%clk 0:00:18.3]} 36... Bxb5 {[%clk 0:00:04.2]} 37. Bxb5+
{[%clk 0:00:19.2]} 1-0

[Event "Late-Titled-Tuesday-Blitz-November-28-2023"]
[Site "Chess.com"]
[Date "2023.11.28"]
[Round "5"]
[White "gabduschew"]
[Black "MKlose11"]
[Result "1-0"]
[WhiteElo "2450"]
[BlackElo "2592"]
[TimeControl "180+1"]
[EndTime "14:53:33 PST"]
[Termination "gabduschew won by checkmate"]

1. b3 {[%clk 0:02:59.9]} 1... Nf6 {[%clk 0:02:58.9]} 2. Bb2 {[%clk 0:02:58.9]}
2... g6 {[%clk 0:02:59.3]} 3. Bxf6 {[%clk 0:02:58.1]} 3... exf6 {[%clk
0:03:00.2]} 4. e3 {[%clk 0:02:58.1]} 4... c5 {[%clk 0:02:57.3]} 5. c3 {[%clk
0:02:57.2]} 5... f5 {[%clk 0:02:55.6]} 6. d4 {[%clk 0:02:56.2]} 6... Bg7 {[%clk
0:02:50.9]} 7. g3 {[%clk 0:02:55.4]} 7... d6 {[%clk 0:02:39.9]} 8. Bg2 {[%clk
0:02:54.7]} 8... O-O {[%clk 0:02:39.2]} 9. Ne2 {[%clk 0:02:53.7]} 9... Nc6
{[%clk 0:02:24.7]} 10. O-O {[%clk 0:02:52.5]} 10... Qe7 {[%clk 0:02:21]} 11. Nf4
{[%clk 0:02:50.3]} 11... Rb8 {[%clk 0:02:07.4]} 12. Nd2 {[%clk 0:02:46.1]} 12...
g5 {[%clk 0:01:56.4]} 13. Nd5 {[%clk 0:02:44.5]} 13... Qd8 {[%clk 0:01:56.6]}
14. a4 {[%clk 0:02:23.8]} 14... Be6 {[%clk 0:01:56.4]} 15. Nc4 {[%clk
0:02:22.4]} 15... Rc8 {[%clk 0:01:43.7]} 16. a5 {[%clk 0:02:08.6]} 16... h6
{[%clk 0:01:43.2]} 17. Qh5 {[%clk 0:01:52.3]} 17... Re8 {[%clk 0:01:41.3]} 18.
Rfd1 {[%clk 0:01:48.2]} 18... Ne7 {[%clk 0:01:33.3]} 19. dxc5 {[%clk 0:01:38.8]}
19... Rxc5 {[%clk 0:01:20]} 20. Nxe7+ {[%clk 0:01:32.5]} 20... Qxe7 {[%clk
0:01:15.3]} 21. Nxd6 {[%clk 0:01:25]} 21... Bxb3 {[%clk 0:01:05.2]} 22. Nxe8
{[%clk 0:01:12]} 22... Bxd1 {[%clk 0:01:04.6]} 23. Rxd1 {[%clk 0:01:03.7]} 23...
Qxe8 {[%clk 0:01:04.1]} 24. Bxb7 {[%clk 0:01:01]} 24... Rxa5 {[%clk 0:00:56.4]}
25. c4 {[%clk 0:00:59.4]} 25... Rc5 {[%clk 0:00:50.6]} 26. Bd5 {[%clk
0:00:57.8]} 26... a5 {[%clk 0:00:50.5]} 27. h4 {[%clk 0:00:50.4]} 27... Bf6
{[%clk 0:00:29]} 28. Qxh6 {[%clk 0:00:45]} 28... Qe7 {[%clk 0:00:21.7]} 29. Qg6+
{[%clk 0:00:26.5]} 29... Kf8 {[%clk 0:00:18.7]} 30. Qh6+ {[%clk 0:00:20.1]}
30... Kg8 {[%clk 0:00:19]} 31. hxg5 {[%clk 0:00:19.3]} 31... Bxg5 {[%clk
0:00:19.9]} 32. Qg6+ {[%clk 0:00:19.1]} 32... Kf8 {[%clk 0:00:20.2]} 33. Qxf5
{[%clk 0:00:18.9]} 33... a4 {[%clk 0:00:18.2]} 34. Rb1 {[%clk 0:00:17]} 34... a3
{[%clk 0:00:14.2]} 35. Qh7 {[%clk 0:00:14.8]} 35... Rc8 {[%clk 0:00:13]} 36.
Qh8# {[%clk 0:00:13.8]} 1-0